fUST/lending_fUST_20251011
["ID","MTS","AMOUNT","RATE_DAILY","PERIOD"]
[390862096,1760181063799,-500.34237924,0.00027308,2]
[390862097,1760181063809,-500.0,0.00027308,2]
[390862098,1760181063818,-503.59739427,0.00027308,2]
[390862099,1760181063829,-1201.13,0.00027309,9]
[390862100,1760181063838,-500.0,0.00027309,9]
[390862101,1760181063847,-541.58,0.00027309,9]
[390862102,1760181063857,-1332.62,0.00027309,9]
[390862103,1760181063866,-2990.79,0.00027309,9]
[390862104,1760181063876,-500.0,0.00027309,9]
[390862105,1760181063885,-661.19,0.00027309,9]
[390862106,1760181063895,-2335.06,0.00027309,9]
[390862107,1760181063904,-500.0,0.00027309,9]
[390862108,1760181063913,-3000.0,0.0002731,2]
[390862109,1760181063922,-3000.0,0.0002732,2]
[390862110,1760181063931,-3000.0,0.0002733,2]
[390862111,1760181063940,-3000.0,0.0002734,2]
[390862112,1760181063950,-3000.0,0.0002735,2]
[390862113,1760181063959,-168.0,0.00027351,2]
[390862114,1760181063969,-3000.0,0.0002736,2]
[390862115,1760181063979,-1201.13,0.00027369,9]
[390862116,1760181063988,-500.0,0.00027369,9]
[390862117,1760181063997,-541.58,0.00027369,9]
[390862118,1760181064007,-1332.62,0.00027369,9]
[390862119,1760181064016,-2990.79,0.00027369,9]
[390862120,1760181064025,-500.0,0.00027369,9]
[390862121,1760181064034,-661.19,0.00027369,9]
[390862122,1760181064044,-2335.06,0.00027369,9]
[390862123,1760181064054,-500.0,0.00027369,9]
[390862124,1760181064064,-3000.0,0.0002737,2]
[390862125,1760181064074,-20746.26328358,0.00027373,2]
[390862126,1760181064084,-154.06,0.00027375,7]
[390862127,1760181064093,-168.0,0.00027378,2]
[390862128,1760181064102,-3000.0,0.0002738,2]
[390862129,1760181064112,-3000.0,0.0002739,2]
[390862130,1760181064121,-500.0,0.00027397,5]
[390862131,1760181064130,-1000.0,0.00027397,30]
[390862132,1760181064139,-1000.0,0.00027397,30]
[390862133,1760181064148,-1000.0,0.00027397,30]
[390862134,1760181064157,-1000.0,0.00027397,30]
[390862135,1760181064166,-1000.0,0.00027397,30]
[390862136,1760181064175,-1135.99673508,0.00027397,30]
[390862137,1760181064184,-3000.0,0.000274,2]
[390862138,1760181064193,-4208.83,0.000274,2]
[390862139,1760181064203,-9286.62,0.000274,2]
[390862140,1760181064212,-1201.13,0.00027409,9]
[390862141,1760181064222,-1201.13,0.00027409,9]
[390862142,1760181064231,-1201.13,0.00027409,9]
[390862143,1760181064240,-500.0,0.00027409,9]
[390862144,1760181064250,-500.0,0.00027409,9]
[390862145,1760181064259,-500.0,0.00027409,9]
[390862146,1760181064269,-541.58,0.00027409,9]
[390862147,1760181064279,-541.58,0.00027409,9]
[390862148,1760181064288,-541.58,0.00027409,9]
[390862149,1760181064298,-1332.62,0.00027409,9]
[390862150,1760181064308,-1332.62,0.00027409,9]
[390862151,1760181064317,-1332.62,0.00027409,9]
[390862152,1760181064328,-2990.79,0.00027409,9]
[390862153,1760181064337,-2990.79,0.00027409,9]
[390862154,1760181064347,-2990.79,0.00027409,9]
[390862155,1760181064356,-500.0,0.00027409,9]
[390862156,1760181064365,-500.0,0.00027409,9]
[390862157,1760181064375,-500.0,0.00027409,9]
[390862158,1760181064384,-661.19,0.00027409,9]
[390862159,1760181064393,-661.19,0.00027409,9]
[390862160,1760181064403,-661.19,0.00027409,9]
[390862161,1760181064412,-2335.06,0.00027409,9]
[390862162,1760181064422,-2335.06,0.00027409,9]
[390862163,1760181064431,-2335.06,0.00027409,9]
[390862164,1760181064440,-500.0,0.00027409,9]
[390862165,1760181064449,-500.0,0.00027409,9]
[390862166,1760181064459,-500.0,0.00027409,9]
[390862167,1760181064468,-3000.0,0.0002741,2]
[390862168,1760181064477,-3005.15323595,0.00027412,5]
[390862169,1760181064487,-3000.0,0.0002742,2]
[390862170,1760181064496,-3000.0,0.0002743,2]
[390862171,1760181064505,-3000.0,0.0002744,2]
[390862172,1760181064515,-469.35315239,0.00027442,5]
[390862173,1760181064527,-245.15009123,0.00027442,5]
[390862174,1760181064536,-282.5801296,0.00027442,5]
[390862175,1760181064546,-500.0,0.00027442,5]
[390862176,1760181064555,-299.23514147,0.00027442,5]
[390862177,1760181064565,-500.0,0.00027442,5]
[390862178,1760181064576,-502.59945279,0.00027442,5]
[390862179,1760181064585,-500.0,0.00027442,5]
[390862180,1760181064595,-502.01206102,0.00027442,5]
[390862181,1760181064606,-500.0,0.00027442,5]
[390862182,1760181064615,-500.0,0.00027442,5]
[390862183,1760181064624,-432.67824504,0.00027442,5]
[390862184,1760181064634,-500.0,0.00027442,5]
[390862185,1760181064643,-500.0,0.00027442,5]
[390862186,1760181064652,-500.56035074,0.00027442,5]
[390862187,1760181064661,-500.84319843,0.00027442,5]
[390862188,1760181064671,-599.90783163,0.00027442,5]
[390862189,1760181064680,-500.0,0.00027442,5]
[390862190,1760181064689,-500.0,0.00027442,5]
[390862191,1760181064698,-500.0,0.00027442,5]
[390862192,1760181064707,-500.0,0.00027442,5]
[390862193,1760181064716,-3981.0215556,0.00027449,2]
[390862194,1760181064725,-3000.0,0.0002745,2]
[390862195,1760181064734,-3000.0,0.0002746,2]
[390862196,1760181064743,-1201.13,0.00027469,9]
[390862197,1760181064752,-539.95,0.00027469,9]
[390862198,1760181064761,-541.58,0.00027469,9]
[390862199,1760181064771,-1332.62,0.00027469,9]
[390862200,1760181064780,-2990.79,0.00027469,9]
[390862201,1760181064790,-500.0,0.00027469,9]
[390862202,1760181064799,-661.19,0.00027469,9]
[390862203,1760181064809,-2335.06,0.00027469,9]
[390862204,1760181064818,-500.0,0.00027469,9]
[390862205,1760181064831,-3000.0,0.0002747,2]
[390862206,1760181064840,-500.0,0.00027473,5]
[390862207,1760181064849,-500.0,0.00027473,5]
[390862208,1760181064859,-501.35042252,0.00027473,5]
[390862209,1760181064868,-168.0,0.00027475,2]
[390862210,1760181064877,-154.06,0.00027475,15]
[390862211,1760181064886,-3000.0,0.0002748,2]
[390862212,1760181064895,-3000.0,0.0002749,2]
[390862213,1760181064904,-3000.0,0.000275,2]
[390862214,1760181064914,-4227.576329,0.0002751,2]
[390862215,1760181064923,-720.0,0.00027549,30]
[390862216,1760181064933,-154.06,0.00027575,15]
[390862217,1760181064943,-3009.7386813,0.00027598,2]
[390862218,1760181064952,-983.0819441,0.00027646,2]
[390862219,1760181064963,-508.384,0.00027661,120]
[390862220,1760181064972,-1000.0,0.00027661,120]
[390862221,1760181064983,-1000.0,0.00027661,120]
[390862222,1760181064992,-456.524,0.00027661,120]
[390862223,1760181065002,-1201.13,0.0002767,9]
[390862224,1760181065011,-1201.13,0.0002767,9]
[390862225,1760181065021,-1201.13,0.0002767,9]
[390862226,1760181065031,-1201.13,0.0002767,9]
[390862227,1760181065040,-1201.27,0.0002767,9]
[390862228,1760181065050,-541.58,0.0002767,9]
[390862229,1760181065059,-541.58,0.0002767,9]
[390862230,1760181065069,-541.58,0.0002767,9]
[390862231,1760181065079,-541.58,0.0002767,9]
[390862232,1760181065088,-541.66,0.0002767,9]
[390862233,1760181065097,-1332.62,0.0002767,9]
[390862234,1760181065107,-1332.62,0.0002767,9]
[390862235,1760181065116,-1332.62,0.0002767,9]
[390862236,1760181065126,-1332.62,0.0002767,9]
[390862237,1760181065135,-1332.82,0.0002767,9]
[390862238,1760181065145,-2990.79,0.0002767,9]
[390862239,1760181065154,-2990.79,0.0002767,9]
[390862240,1760181065165,-2990.79,0.0002767,9]
[390862241,1760181065174,-2990.79,0.0002767,9]
[390862242,1760181065183,-2990.91,0.0002767,9]
[390862243,1760181065193,-341.66,0.0002767,9]
[390862244,1760181065202,-661.19,0.0002767,9]
[390862245,1760181065212,-661.19,0.0002767,9]
[390862246,1760181065222,-661.19,0.0002767,9]
[390862247,1760181065231,-661.19,0.0002767,9]
[390862248,1760181065240,-661.29,0.0002767,9]
[390862249,1760181065250,-2335.06,0.0002767,9]
[390862250,1760181065259,-2335.06,0.0002767,9]
[390862251,1760181065268,-2335.06,0.0002767,9]
[390862252,1760181065278,-2335.06,0.0002767,9]
[390862253,1760181065287,-2335.06343628,0.0002767,9]
[390862254,1760181065297,-500.0,0.0002767,9]
[390862255,1760181065306,-182.4,0.0002767,9]
[390862256,1760181065317,-325.64,0.00027671,10]
[390862257,1760181065328,-291.45974772,0.00027673,5]
[390862258,1760181065337,-154.06,0.00027675,15]
[390862259,1760181065346,-1945.3,0.00027722,2]
[390862260,1760181065356,-3981.02155558,0.00027724,2]
[390862261,1760181065365,-154.06,0.00027775,15]
[390862262,1760181065374,-194.0,0.0002784,19]
[390862263,1760181065384,-1122.50427265,0.00027856,5]
[390862264,1760181065393,-154.06,0.00027875,15]
[390862265,1760181065402,-168.0,0.00027879,2]
[390862266,1760181065411,-168.0,0.00027951,2]
[390862267,1760181065420,-154.06,0.00027975,15]
[390862268,1760181065430,-642.90531971,0.0002799,5]
[390862269,1760181065440,-1000.0,0.0002799,5]
[390862270,1760181065449,-1000.0,0.0002799,5]
[390862271,1760181065458,-1003.64926793,0.0002799,5]
[390862272,1760181065468,-1000.0,0.0002799,5]
[390862273,1760181065477,-1000.0,0.0002799,5]
[390862274,1760181065487,-1000.0,0.0002799,5]
[390862275,1760181065496,-1000.0,0.0002799,5]
[390862276,1760181065507,-1000.0,0.0002799,5]
[390862277,1760181065516,-1000.0,0.0002799,5]
[390862278,1760181065530,-1000.0,0.0002799,5]
[390862279,1760181065539,-3981.02155558,0.00028,2]
[390862280,1760181065549,-1000.0,0.00028021,5]
[390862281,1760181065559,-154.06,0.00028075,15]
[390862282,1760181065569,-342.0,0.00028114,2]
[390862283,1760181065579,-154.06,0.00028175,15]
[390862284,1760181065589,-5888.0,0.00028195,2]
[390862285,1760181065600,-11604.29,0.00028219,6]
[390862286,1760181065610,-208.31842177,0.00028239,5]
[390862287,1760181065619,-154.06,0.00028275,15]
[390862288,1760181065628,-3981.02155558,0.00028275,2]
[390862289,1760181065638,-671.5634739,0.00028291,2]
[390862290,1760181065647,-219.3552316,0.00028343,2]
[390862291,1760181065657,-154.11940111,0.00028375,15]
[390862292,1760181065666,-981.732,0.00028406,2]
[390862293,1760181065676,-630.0,0.00028406,2]
[390862294,1760181065685,-2159.0,0.00028406,2]
[390862295,1760181065695,-4196.0,0.00028462,2]
[390862296,1760181065704,-1000.0,0.00028515,5]
[390862297,1760181065713,-381.2021319,0.00028521,30]
[390862298,1760181065723,-153.0,0.00028521,30]
[390862299,1760181065732,-297.8851395,0.00028521,30]
[390862300,1760181065741,-359.369022,0.00028521,30]
[390862301,1760181065751,-588.4106815,0.00028521,30]
[390862302,1760181065760,-153.0,0.00028521,30]
[390862303,1760181065769,-297.8851395,0.00028521,30]
[390862304,1760181065778,-306.0,0.00028521,30]
[390862305,1760181065787,-591.6713613,0.00028521,30]
[390862306,1760181065797,-297.8851395,0.00028521,30]
[390862307,1760181065806,-588.4106815,0.00028521,30]
[390862308,1760181065816,-588.4106815,0.00028521,30]
[390862309,1760181065826,-500.0,0.00028538,5]
[390862310,1760181065835,-502.27474624,0.00028538,5]
[390862311,1760181065938,-188.03136191,0.00028538,5]
[390862312,1760181065948,-500.0,0.00028538,5]
[390862313,1760181065957,-500.0,0.00028538,5]
[390862314,1760181065967,-1500.0,0.00028538,5]
[390862315,1760181065976,-1500.0,0.00028538,5]
[390862316,1760181065985,-1500.0,0.00028538,5]
[390862317,1760181065994,-3981.02155558,0.0002855,2]
[390862318,1760181066003,-959.91776811,0.00028574,2]
[390862319,1760181066012,-2609.37557469,0.000286,30]
[390862320,1760181066022,-150.0,0.00028697,2]
[390862321,1760181066032,-150.0,0.00028697,2]
[390862322,1760181066041,-500.0,0.00028767,60]
[390862323,1760181066050,-500.0,0.00028767,60]
[390862324,1760181066059,-500.0,0.00028767,60]
[390862325,1760181066067,-500.0,0.00028767,60]
[390862326,1760181066079,-500.0,0.00028767,60]
[390862327,1760181066088,-644.54,0.00028767,60]
[390862328,1760181066097,-151.0,0.00028767,30]
[390862329,1760181066107,-154.332877,0.00028767,30]
[390862330,1760181066116,-151.0,0.00028767,30]
[390862331,1760181066125,-151.0,0.00028767,30]
[390862332,1760181066135,-151.0,0.00028767,30]
[390862333,1760181066144,-151.0,0.00028767,30]
[390862334,1760181066154,-641.462519,0.00028767,30]
[390862335,1760181066164,-641.462519,0.00028767,30]
[390862336,1760181066174,-641.462519,0.00028767,30]
[390862337,1760181066183,-641.462519,0.00028767,30]
[390862338,1760181066193,-153.29549428,0.00028791,7]
[390862339,1760181066202,-3981.02155558,0.00028826,2]
[390862340,1760181066212,-9286.62,0.00029,2]
[390862341,1760181066221,-2000.0,0.00029086,5]
[390862342,1760181066230,-502.45008947,0.00029086,5]
[390862343,1760181066239,-2000.0,0.00029086,5]
[390862344,1760181066248,-3981.02155558,0.00029101,2]
[390862345,1760181066258,-180.41427463,0.00029112,5]
[390862346,1760181066267,-160.03104987,0.00029112,5]
[390862347,1760181066276,-20386.48,0.00029199,12]
[390862348,1760181066286,-162.8757457,0.00029205,30]
[390862349,1760181066295,-297.8851395,0.00029205,30]
[390862350,1760181066304,-189.7226975,0.00029205,30]
[390862351,1760181066313,-306.0,0.00029205,30]
[390862352,1760181066325,-588.4106815,0.00029205,30]
[390862353,1760181066334,-297.8851395,0.00029205,30]
[390862354,1760181066343,-588.4106815,0.00029205,30]
[390862355,1760181066353,-297.8851395,0.00029205,30]
[390862356,1760181066362,-189.7226975,0.00029205,30]
[390862357,1760181066371,-588.4106815,0.00029205,30]
[390862358,1760181066380,-297.8851395,0.00029205,30]
[390862359,1760181066389,-588.4106815,0.00029205,30]
[390862360,1760181066398,-189.7226975,0.00029205,30]
[390862361,1760181066408,-297.8851395,0.00029205,30]
[390862362,1760181066417,-153.0,0.00029205,30]
[390862363,1760181066428,-1822.41147675,0.00029226,2]
[390862364,1760181066437,-11604.29,0.00029315,8]
[390862365,1760181066446,-195.350219,0.00029315,30]
[390862366,1760181066455,-195.350219,0.00029315,30]
[390862367,1760181066464,-195.350219,0.00029315,30]
[390862368,1760181066473,-195.350219,0.00029315,30]
[390862369,1760181066482,-151.0,0.00029315,30]
[390862370,1760181066491,-151.0,0.00029315,30]
[390862371,1760181066501,-151.0,0.00029315,30]
[390862372,1760181066510,-347.712409,0.00029315,30]
[390862373,1760181066520,-347.712409,0.00029315,30]
[390862374,1760181066536,-151.0,0.00029315,30]
[390862375,1760181066546,-347.712409,0.00029315,30]
[390862376,1760181066555,-347.712409,0.00029315,30]
[390862377,1760181066567,-151.0,0.00029315,30]
[390862378,1760181066578,-151.0,0.00029315,30]
[390862379,1760181066588,-151.0,0.00029315,30]
[390862380,1760181066599,-280.866,0.00029315,30]
[390862381,1760181066611,-152.337827,0.00029315,30]
[390862382,1760181066620,-151.0,0.00029315,30]
[390862383,1760181066631,-151.0,0.00029315,30]
[390862384,1760181066640,-151.0,0.00029315,30]
[390862385,1760181066650,-151.0,0.00029315,30]
[390862386,1760181066659,-454.825311,0.00029315,30]
[390862387,1760181066668,-454.825311,0.00029315,30]
[390862388,1760181066677,-454.825311,0.00029315,30]
[390862389,1760181066686,-454.825311,0.00029315,30]
[390862390,1760181066695,-151.0,0.00029315,30]
[390862391,1760181066704,-154.818614,0.00029341,10]
[390862392,1760181066713,-154.839833,0.00029341,10]
[390862393,1760181066723,-3981.02155558,0.00029376,2]
[390862394,1760181066732,-2269.51,0.00029455,2]
[390862395,1760181066742,-4208.83,0.000295,2]
[390862396,1760181066751,-242.66491503,0.0002953,2]
[390862397,1760181066760,-200.0,0.0002955,120]
[390862398,1760181066770,-11994.78,0.00029617,12]
[390862399,1760181066779,-1505.68056906,0.00029633,5]
[390862400,1760181066788,-2500.0,0.00029633,5]
[390862401,1760181066797,-3981.02155558,0.00029652,2]
[390862402,1760181066807,-195.0,0.0002973,24]
[390862403,1760181066816,-923.0,0.000298,2]
[390862404,1760181066828,-250.0,0.000298,10]
[390862405,1760181066837,-500.0,0.00029802,11]
[390862406,1760181066847,-500.0,0.00029803,11]
[390862407,1760181066856,-2603.29,0.0002986,30]
[390862408,1760181066865,-801.70176009,0.00029905,2]
[390862409,1760181066874,-959.91776811,0.00029913,2]
[390862410,1760181066883,-800.0,0.00029914,2]
[390862411,1760181066892,-15552.19750194,0.00029915,3]
[390862412,1760181066901,-3981.02155558,0.00029927,2]
[390862413,1760181066911,-168.18277568,0.00029927,20]
[390862414,1760181066920,-800.0,0.00029932,2]
[390862415,1760181066933,-153.0291586,0.00029941,2]
[390862416,1760181066953,-154.818614,0.00029997,20]
[390862417,1760181066965,-800.0,0.00029997,2]
[390862418,1760181066981,-154.839833,0.00029997,20]
[390862419,1760181067001,-191.951,0.0003,2]
[390862420,1760181067012,-325.7514914,0.0003,30]
[390862421,1760181067023,-391.9198272,0.0003,30]
[390862422,1760181067033,-153.0,0.0003,30]
[390862423,1760181067042,-588.4106815,0.0003,30]
[390862424,1760181067051,-189.7226975,0.0003,30]
[390862425,1760181067059,-153.5971104,0.0003,30]
[390862426,1760181067068,-595.0355407,0.0003,30]
[390862427,1760181067077,-153.0,0.0003,30]
[390862428,1760181067086,-391.9198272,0.0003,30]
[390862429,1760181067095,-588.4106815,0.0003,30]
[390862430,1760181067103,-189.7226975,0.0003,30]
[390862431,1760181067112,-391.9198272,0.0003,30]
[390862432,1760181067121,-153.0,0.0003,30]
[390862433,1760181067130,-588.4106815,0.0003,30]
[390862434,1760181067139,-189.7226975,0.0003,30]
[390862435,1760181067147,-189.7226975,0.0003,30]
[390862436,1760181067156,-391.9198272,0.0003,30]
[390862437,1760181067165,-588.4106815,0.0003,30]
[390862438,1760181067174,-391.9198272,0.0003,30]
[390862439,1760181067184,-391.9198272,0.0003,30]
[390862440,1760181067193,-287.927,0.0003,2]
[390862441,1760181067202,-800.0,0.00030009,2]
[390862442,1760181067211,-200.48081747,0.00030012,10]
[390862443,1760181067219,-214.66,0.00030012,2]
[390862444,1760181067229,-214.66,0.00030012,2]
[390862445,1760181067239,-214.66,0.00030012,2]
[390862446,1760181067248,-214.66,0.00030012,2]
[390862447,1760181067259,-214.66,0.00030012,2]
[390862448,1760181067270,-214.66,0.00030012,2]
[390862449,1760181067279,-214.66,0.00030012,2]
[390862450,1760181067289,-214.66,0.00030012,2]
[390862451,1760181067298,-214.66,0.00030012,2]
[390862452,1760181067307,-214.66,0.00030012,2]
[390862453,1760181067317,-151.0,0.00030013,30]
[390862454,1760181067328,-151.0,0.00030013,30]
[390862455,1760181067337,-151.0,0.00030013,30]
[390862456,1760181067348,-151.0,0.00030013,30]
[390862457,1760181067356,-151.0,0.00030013,30]
[390862458,1760181067366,-151.0,0.00030013,30]
[390862459,1760181067375,-151.0,0.00030013,30]
[390862460,1760181067385,-151.0,0.00030013,30]
[390862461,1760181067394,-151.0,0.00030013,30]
[390862462,1760181067403,-151.0,0.00030013,30]
[390862463,1760181067413,-151.0,0.00030013,30]
[390862464,1760181067422,-151.0,0.00030013,30]
[390862465,1760181067431,-151.0,0.00030013,30]
[390862466,1760181067441,-259.19916,0.00030013,30]
[390862467,1760181067451,-151.0,0.00030013,30]
[390862468,1760181067460,-151.0,0.00030013,30]
[390862469,1760181067470,-207.087728,0.00030013,30]
[390862470,1760181067479,-151.0,0.00030013,30]
[390862471,1760181067488,-151.0,0.00030013,30]
[390862472,1760181067498,-151.0,0.00030013,30]
[390862473,1760181067507,-151.0,0.00030013,30]
[390862474,1760181067516,-151.0,0.00030013,30]
[390862475,1760181067528,-151.0,0.00030013,30]
[390862476,1760181067537,-151.0,0.00030013,30]
[390862477,1760181067546,-151.0,0.00030013,30]
[390862478,1760181067556,-151.0,0.00030013,30]
[390862479,1760181067566,-151.0,0.00030013,30]
[390862480,1760181067576,-298.678654,0.00030013,30]
[390862481,1760181067585,-151.0,0.00030015,30]
[390862482,1760181067595,-151.0,0.00030015,30]
[390862483,1760181067606,-151.0,0.00030015,30]
[390862484,1760181067616,-151.0,0.00030015,30]
[390862485,1760181067625,-175.96314372,0.00030015,30]
[390862486,1760181067634,-166.0,0.00030027,7]
[390862487,1760181067643,-172.0,0.00030027,7]
[390862488,1760181067653,-175.0,0.00030027,7]
[390862489,1760181067662,-175.0,0.00030027,7]
[390862490,1760181067671,-175.0,0.00030027,7]
[390862491,1760181067680,-175.09993288,0.00030027,7]
[390862492,1760181067690,-157.0,0.00030027,7]
[390862493,1760181067700,-157.0,0.00030027,7]
[390862494,1760181067709,-157.0,0.00030027,7]
[390862495,1760181067718,-157.0,0.00030027,7]
[390862496,1760181067727,-157.0,0.00030027,7]
[390862497,1760181067736,-157.0,0.00030027,7]
[390862498,1760181067745,-160.05791752,0.00030027,7]
[390862499,1760181067754,-166.0,0.00030027,7]
[390862500,1760181067763,-166.0,0.00030027,7]
[390862501,1760181067772,-166.0,0.00030027,7]
[390862502,1760181067782,-172.0,0.00030027,7]
[390862503,1760181067791,-329.0,0.00030027,7]
[390862504,1760181067800,-329.0,0.00030027,7]
[390862505,1760181067809,-329.0,0.00030027,7]
[390862506,1760181067819,-329.0,0.00030027,7]
[390862507,1760181067830,-329.0,0.00030027,7]
[390862508,1760181067839,-329.0,0.00030027,7]
[390862509,1760181067848,-329.0,0.00030027,7]
[390862510,1760181067858,-329.0,0.00030027,7]
[390862511,1760181067867,-329.0,0.00030027,7]
[390862512,1760181067876,-329.0,0.00030027,7]
[390862513,1760181067885,-329.0,0.00030027,7]
[390862514,1760181067894,-329.0,0.00030027,7]
[390862515,1760181067903,-329.0,0.00030027,7]
[390862516,1760181067912,-329.0,0.00030027,7]
[390862517,1760181067921,-329.0,0.00030027,7]
[390862518,1760181068025,-329.0,0.00030027,7]
[390862519,1760181068034,-329.0,0.00030027,7]
[390862520,1760181068044,-329.0,0.00030027,7]
[390862521,1760181068054,-329.0,0.00030027,7]
[390862522,1760181068075,-329.0,0.00030027,7]
[390862523,1760181068085,-329.0,0.00030027,7]
[390862524,1760181068095,-329.0,0.00030027,7]
[390862525,1760181068105,-329.0,0.00030027,7]
[390862526,1760181068115,-329.0,0.00030027,7]
[390862527,1760181068126,-329.0,0.00030027,7]
[390862528,1760181068136,-329.0,0.00030027,7]
[390862529,1760181068146,-329.0,0.00030027,7]
[390862530,1760181068156,-329.0,0.00030027,7]
[390862531,1760181068166,-329.0,0.00030027,7]
[390862532,1760181068176,-329.0,0.00030027,7]
[390862533,1760181068187,-329.0,0.00030027,7]
[390862534,1760181068197,-329.0,0.00030027,7]
[390862535,1760181068207,-329.0,0.00030027,7]
[390862536,1760181068217,-329.0,0.00030027,7]
[390862537,1760181068227,-329.0,0.00030027,7]
[390862538,1760181068237,-329.0,0.00030027,7]
[390862539,1760181068247,-329.0,0.00030027,7]
[390862540,1760181068257,-329.0,0.00030027,7]
[390862541,1760181068267,-329.0,0.00030027,7]
[390862542,1760181068276,-329.0,0.00030027,7]
[390862543,1760181068286,-329.0,0.00030027,7]
[390862544,1760181068296,-329.0,0.00030027,7]
[390862545,1760181068305,-329.0,0.00030027,7]
[390862546,1760181068316,-329.0,0.00030027,7]
[390862547,1760181068326,-329.0,0.00030027,7]
[390862548,1760181068335,-329.0,0.00030027,7]
[390862549,1760181068344,-329.0,0.00030027,7]
[390862550,1760181068352,-329.0,0.00030027,7]
[390862551,1760181068361,-329.0,0.00030027,7]
[390862552,1760181068369,-329.0,0.00030027,7]
[390862553,1760181068378,-329.0,0.00030027,7]
[390862554,1760181068387,-329.0,0.00030027,7]
[390862555,1760181068396,-329.0,0.00030027,7]
[390862556,1760181068406,-334.41020079,0.00030027,7]
[390862557,1760181068415,-329.0,0.00030027,7]
[390862558,1760181068424,-329.0,0.00030027,7]
[390862559,1760181068434,-329.0,0.00030027,7]
[390862560,1760181068443,-329.0,0.00030027,7]
[390862561,1760181068453,-329.0,0.00030027,7]
[390862562,1760181068463,-329.0,0.00030027,7]
[390862563,1760181068473,-329.0,0.00030027,7]
[390862564,1760181068482,-329.0,0.00030027,7]
[390862565,1760181068492,-329.0,0.00030027,7]
[390862566,1760181068501,-151.0,0.00030027,30]
[390862567,1760181068511,-151.0,0.00030027,30]
[390862568,1760181068521,-151.0,0.00030027,30]
[390862569,1760181068534,-151.0,0.00030027,30]
[390862570,1760181068543,-151.0,0.00030027,30]
[390862571,1760181068553,-151.0,0.00030027,30]
[390862572,1760181068563,-151.0,0.00030027,30]
[390862573,1760181068573,-151.0,0.00030027,30]
[390862574,1760181068582,-151.0,0.00030027,30]
[390862575,1760181068592,-151.0,0.00030027,30]
[390862576,1760181068604,-151.0,0.00030027,30]
[390862577,1760181068614,-151.0,0.00030027,30]
[390862578,1760181068623,-151.0,0.00030027,30]
[390862579,1760181068633,-151.0,0.00030027,30]
[390862580,1760181068643,-151.0,0.00030027,30]
[390862581,1760181068653,-264.1689,0.00030027,30]
[390862582,1760181068663,-151.0,0.00030027,30]
[390862583,1760181068672,-151.0,0.00030027,30]
[390862584,1760181068682,-151.0,0.00030027,30]
[390862585,1760181068691,-226.808636,0.00030027,30]
[390862586,1760181068701,-151.0,0.00030027,30]
[390862587,1760181068711,-151.0,0.00030027,30]
[390862588,1760181068720,-151.0,0.00030027,30]
[390862589,1760181068730,-151.0,0.00030027,30]
[390862590,1760181068740,-151.0,0.00030027,30]
[390862591,1760181068749,-151.0,0.00030027,30]
[390862592,1760181068759,-291.820512,0.00030027,30]
[390862593,1760181068768,-151.0,0.00030027,30]
[390862594,1760181068778,-151.0,0.00030027,30]
[390862595,1760181068788,-1000.0,0.00030027,2]